fUSD/lending_fUSD_20260612
["ID","MTS","AMOUNT","RATE_DAILY","PERIOD"]
[424890091,1781241032000,-250.0,0.00012868,2]
[424890097,1781241032000,-1568.16,0.00013055,2]
[424890096,1781241032000,-5355.70002228,0.00013045,2]
[424890094,1781241032000,-166.66,0.00013009,2]
[424890099,1781241032000,-166.66,0.00013283,2]
[424890102,1781241032000,-150.0,0.00013488,2]
[424890103,1781241032000,-150.0,0.00013488,2]
[424890101,1781241032000,-5355.70002228,0.0001331,2]
[424890107,1781241032000,-150.0,0.00013556,2]
[424890100,1781241032000,-2914.779048,0.0001331,2]
[424890108,1781241032000,-166.66,0.00013557,2]
[424890092,1781241032000,-500.0,0.00012868,2]
[424890090,1781241032000,-200.0,0.00012804,2]
[424890078,1781241032000,-160.0,0.00011699,2]
[424890088,1781241032000,-2914.779048,0.0001278,2]
[424890072,1781241032000,-1447.85461755,0.000116,2]
[424890073,1781241032000,-327.86973261,0.000116,2]
[424890074,1781241032000,-603.84235597,0.000116,2]
[424890076,1781241032000,-89983.60345034,0.000116,2]
[424890075,1781241032000,-345.38191605,0.000116,2]
[424890077,1781241032000,-250.0,0.00011697,2]
[424890079,1781241032000,-5530.0,0.000119,3]
[424890081,1781241032000,-500.0,0.00012499,2]
[424890083,1781241032000,-5355.70002237,0.00012515,2]
[424890080,1781241032000,-5530.0,0.000122,5]
[424890084,1781241032000,-150.0,0.00012615,2]
[424890085,1781241032000,-161.64,0.00012621,2]
[424890082,1781241032000,-2914.77904804,0.00012515,2]
[424890087,1781241032000,-255.0,0.00012772,2]
[424890086,1781241032000,-155.22,0.00012717,2]
[424890109,1781241032000,-2914.779048,0.00013575,2]
[424890106,1781241032000,-150.0,0.00013488,2]
[424890089,1781241032000,-5355.70002228,0.0001278,2]
[424890105,1781241032000,-150.0,0.00013488,2]
[424890127,1781241032000,-287.06193287,0.00013698,2]
[424890132,1781241032000,-500.0,0.00013698,2]
[424890131,1781241032000,-500.0,0.00013698,2]
[424890133,1781241032000,-500.0,0.00013698,2]
[424890134,1781241032000,-500.0,0.00013698,2]
[424890136,1781241032000,-500.0,0.00013698,2]
[424890138,1781241032000,-538.57,0.00013698,2]
[424890137,1781241032000,-538.57,0.00013698,2]
[424890139,1781241032000,-200.0,0.00013699,2]
[424890142,1781241032000,-500.0,0.00013699,2]
[424890144,1781241032000,-500.0,0.00013699,2]
[424890141,1781241032000,-500.0,0.00013699,2]
[424890143,1781241032000,-500.0,0.00013699,2]
[424890140,1781241032000,-500.0,0.00013699,2]
[424890104,1781241032000,-150.0,0.00013488,2]
[424890130,1781241032000,-500.0,0.00013698,2]
[424890121,1781241032000,-621.19,0.00013698,2]
[424890135,1781241032000,-500.0,0.00013698,2]
[424890126,1781241032000,-500.0,0.00013698,2]
[424890129,1781241032000,-500.0,0.00013698,2]
[424890117,1781241032000,-500.0,0.00013698,2]
[424890119,1781241032000,-500.0,0.00013698,2]
[424890118,1781241032000,-500.0,0.00013698,2]
[424890120,1781241032000,-500.0,0.00013698,2]
[424890114,1781241032000,-500.0,0.00013698,2]
[424890111,1781241032000,-150.0,0.00013624,2]
[424890113,1781241032000,-500.0,0.00013698,2]
[424890110,1781241032000,-5355.70002228,0.00013575,2]
[424890115,1781241032000,-513.58758268,0.00013698,2]
[424890112,1781241032000,-150.0,0.00013692,2]
[424890122,1781241032000,-500.0,0.00013698,2]
[424890128,1781241032000,-1138.68,0.00013698,2]
[424890124,1781241032000,-500.0,0.00013698,2]
[424890123,1781241032000,-500.0,0.00013698,2]
[424890116,1781241032000,-500.0,0.00013698,2]
[424890125,1781241032000,-500.0,0.00013698,2]
[424890171,1781241033000,-500.0,0.00013699,2]
[424890181,1781241033000,-500.0,0.00013699,2]
[424890177,1781241033000,-500.0,0.00013699,2]
[424890172,1781241033000,-500.0,0.00013699,2]
[424890168,1781241033000,-500.0,0.00013699,2]
[424890167,1781241033000,-500.0,0.00013699,2]
[424890174,1781241033000,-500.0,0.00013699,2]
[424890179,1781241033000,-500.0,0.00013699,2]
[424890176,1781241033000,-500.0,0.00013699,2]
[424890180,1781241033000,-500.0,0.00013699,2]
[424890188,1781241033000,-483.22398191,0.00013699,2]
[424890178,1781241033000,-500.0,0.00013699,2]
[424890184,1781241033000,-500.0,0.00013699,2]
[424890183,1781241033000,-500.0,0.00013699,2]
[424890186,1781241033000,-500.0,0.00013699,2]
[424890185,1781241033000,-500.0,0.00013699,2]
[424890187,1781241033000,-500.0,0.00013699,2]
[424890191,1781241033000,-500.0,0.00013699,2]
[424890193,1781241033000,-500.0,0.00013699,2]
[424890175,1781241033000,-500.0,0.00013699,2]
[424890182,1781241033000,-500.0,0.00013699,2]
[424890170,1781241033000,-500.0,0.00013699,2]
[424890151,1781241033000,-500.0,0.00013699,2]
[424890173,1781241033000,-500.0,0.00013699,2]
[424890145,1781241033000,-500.0,0.00013699,2]
[424890147,1781241033000,-500.0,0.00013699,2]
[424890148,1781241033000,-500.0,0.00013699,2]
[424890150,1781241033000,-500.0,0.00013699,2]
[424890199,1781241033000,-500.0,0.00013699,2]
[424890149,1781241033000,-500.0,0.00013699,2]
[424890154,1781241033000,-500.0,0.00013699,2]
[424890153,1781241033000,-500.0,0.00013699,2]
[424890156,1781241033000,-500.0,0.00013699,2]
[424890155,1781241033000,-500.0,0.00013699,2]
[424890152,1781241033000,-500.0,0.00013699,2]
[424890157,1781241033000,-500.0,0.00013699,2]
[424890158,1781241033000,-500.0,0.00013699,2]
[424890160,1781241033000,-500.0,0.00013699,2]
[424890161,1781241033000,-500.0,0.00013699,2]
[424890162,1781241033000,-500.0,0.00013699,2]
[424890159,1781241033000,-500.0,0.00013699,2]
[424890164,1781241033000,-500.0,0.00013699,2]
[424890163,1781241033000,-500.0,0.00013699,2]
[424890165,1781241033000,-500.0,0.00013699,2]
[424890166,1781241033000,-500.0,0.00013699,2]
[424890169,1781241033000,-500.0,0.00013699,2]
[424890189,1781241033000,-500.0,0.00013699,2]
[424890146,1781241033000,-500.0,0.00013699,2]
[424890197,1781241033000,-500.0,0.00013699,2]
[424890251,1781241033000,-920.36493653,0.00013699,2]
[424890252,1781241033000,-920.36493653,0.00013699,2]
[424890254,1781241033000,-920.36493653,0.00013699,2]
[424890256,1781241033000,-920.36493653,0.00013699,2]
[424890255,1781241033000,-920.36493653,0.00013699,2]
[424890258,1781241033000,-920.36493653,0.00013699,2]
[424890257,1781241033000,-920.36493653,0.00013699,2]
[424890259,1781241033000,-22286.25,0.00013699,2]
[424890260,1781241033000,-920.36493653,0.00013699,2]
[424890263,1781241033000,-1307.70071725,0.00013787,2]
[424890265,1781241033000,-150.0,0.00013787,2]
[424890264,1781241033000,-150.0,0.00013787,2]
[424890262,1781241033000,-150.0,0.0001376,2]
[424890266,1781241033000,-150.0,0.00013787,2]
[424890267,1781241033000,-150.0,0.00013828,2]
[424890269,1781241033000,-2914.779048,0.0001384,2]
[424890268,1781241033000,-166.66,0.0001383,2]
[424890270,1781241033000,-5355.70002228,0.0001384,2]
[424890271,1781241033000,-419.93,0.00013887,2]
[424890272,1781241033000,-1259.8,0.00013887,2]
[424890195,1781241033000,-500.0,0.00013699,2]
[424890250,1781241033000,-920.36493653,0.00013699,2]
[424890253,1781241033000,-920.36493653,0.00013699,2]
[424890261,1781241033000,-150.0,0.00013737,2]
[424890248,1781241033000,-920.36493653,0.00013699,2]
[424890202,1781241033000,-500.0,0.00013699,2]
[424890249,1781241033000,-920.36493653,0.00013699,2]
[424890204,1781241033000,-500.0,0.00013699,2]
[424890215,1781241033000,-920.36493653,0.00013699,2]
[424890219,1781241033000,-920.36493653,0.00013699,2]
[424890217,1781241033000,-920.36493653,0.00013699,2]
[424890222,1781241033000,-920.36493653,0.00013699,2]
[424890210,1781241033000,-920.36493653,0.00013699,2]
[424890213,1781241033000,-920.36493653,0.00013699,2]
[424890208,1781241033000,-920.36493653,0.00013699,2]
[424890224,1781241033000,-920.36493653,0.00013699,2]
[424890206,1781241033000,-500.0,0.00013699,2]
[424890240,1781241033000,-920.36493653,0.00013699,2]
[424890235,1781241033000,-920.36493653,0.00013699,2]
[424890237,1781241033000,-920.36493653,0.00013699,2]
[424890230,1781241033000,-920.36493653,0.00013699,2]
[424890228,1781241033000,-920.36493653,0.00013699,2]
[424890233,1781241033000,-920.36493653,0.00013699,2]
[424890245,1781241033000,-920.36493653,0.00013699,2]
[424890244,1781241033000,-920.36493653,0.00013699,2]
[424890242,1781241033000,-920.36493653,0.00013699,2]
[424890226,1781241033000,-920.36493653,0.00013699,2]
[424890247,1781241033000,-920.36493653,0.00013699,2]
[424890310,1781241034000,-2914.779048,0.0001437,2]
[424890309,1781241034000,-150.0,0.00014305,2]
[424890307,1781241034000,-150.0,0.00014237,2]
[424890306,1781241034000,-150.0,0.00014237,2]
[424890300,1781241034000,-150.0,0.00014101,2]
[424890303,1781241034000,-5355.70002228,0.00014105,2]
[424890304,1781241034000,-150.0,0.00014169,2]
[424890299,1781241034000,-900.0,0.000141,5]
[424890311,1781241034000,-5355.70002228,0.0001437,2]
[424890305,1781241034000,-1400.0,0.000142,5]
[424890308,1781241034000,-1900.0,0.000143,5]
[424890325,1781241034000,-4794.6492,0.00014481,2]
[424890314,1781241034000,-150.0,0.00014387,2]
[424890312,1781241034000,-150.0,0.00014373,2]
[424890315,1781241034000,-150.0,0.00014387,2]
[424890317,1781241034000,-2493.8597303,0.00014399,2]
[424890318,1781241034000,-2300.0,0.000144,5]
[424890316,1781241034000,-150.0,0.00014387,2]
[424890319,1781241034000,-150.0,0.00014441,2]
[424890320,1781241034000,-453.685257,0.00014452,2]
[424890322,1781241034000,-1342.78480821,0.00014481,2]
[424890298,1781241034000,-150.0,0.00014087,2]
[424890313,1781241034000,-166.66,0.00014378,2]
[424890301,1781241034000,-166.66,0.00014104,2]
[424890274,1781241034000,-536.0,0.00013904,2]
[424890289,1781241034000,-400.0,0.00014,5]
[424890273,1781241034000,-150.0,0.00013896,2]
[424890275,1781241034000,-536.0,0.00013904,2]
[424890327,1781241034000,-333.185956,0.00014481,2]
[424890276,1781241034000,-536.0,0.00013904,2]
[424890278,1781241034000,-536.0,0.00013904,2]
[424890277,1781241034000,-536.0,0.00013904,2]
[424890279,1781241034000,-536.0,0.00013904,2]
[424890280,1781241034000,-536.0,0.00013904,2]
[424890281,1781241034000,-971.242,0.00013904,2]
[424890282,1781241034000,-433.0,0.00013942,2]
[424890284,1781241034000,-150.0,0.00013987,2]
[424890302,1781241034000,-2914.779048,0.00014105,2]
[424890283,1781241034000,-150.0,0.00013965,2]
[424890285,1781241034000,-1138.68,0.00013989,2]
[424890294,1781241034000,-1759.74592773,0.00014064,2]
[424890288,1781241034000,-250.0,0.00014,2]
[424890297,1781241034000,-150.0,0.00014087,2]
[424890295,1781241034000,-558.31250894,0.00014064,2]
[424890296,1781241034000,-150.0,0.00014087,2]
[424890287,1781241034000,-2000.0,0.0001399,2]
[424890292,1781241034000,-267.29716696,0.00014064,2]
[424890290,1781241034000,-500.0,0.00014013,2]
[424890291,1781241034000,-150.0,0.00014033,2]
[424890293,1781241034000,-1401.20101214,0.00014064,2]
[424890286,1781241034000,-509.90810486,0.00013989,2]
[424890321,1781241034000,-508.82029477,0.00014481,2]
[424890338,1781241034000,-400.0,0.000146,5]
[424890324,1781241034000,-3543.63035381,0.00014481,2]
[424890362,1781241034000,-150.0,0.00014737,2]
[424890358,1781241034000,-151.0,0.00014729,2]
[424890359,1781241034000,-1259.8,0.00014731,2]
[424890357,1781241034000,-1138.68,0.00014729,2]
[424890360,1781241034000,-3167.048,0.00014732,2]
[424890361,1781241034000,-193.442,0.00014732,2]
[424890356,1781241034000,-150.0,0.00014714,2]
[424890355,1781241034000,-626.78166446,0.00014712,2]
[424890363,1781241034000,-28807.5405596,0.00014747,2]
[424890366,1781241034000,-500.0,0.00014776,2]
[424890365,1781241034000,-500.0,0.00014776,2]
[424890323,1781241034000,-2368.83156706,0.00014481,2]
[424890364,1781241034000,-300.0,0.00014763,2]
[424890370,1781241034000,-150.0,0.00014782,2]
[424890372,1781241034000,-289.40693849,0.00014789,2]
[424890369,1781241034000,-8097.1702766,0.00014777,2]
[424890367,1781241034000,-500.0,0.00014776,2]
[424890371,1781241034000,-9602.5135199,0.00014783,2]
[424890373,1781241034000,-2493.8597303,0.00014793,2]
[424890375,1781241034000,-400.0,0.000148,5]
[424890376,1781241034000,-219.20640401,0.00014802,2]
[424890374,1781241034000,-5800.0,0.00014798,2]
[424890377,1781241034000,-626.78166446,0.00014806,2]
[424890354,1781241034000,-400.0,0.000147,5]
[424890353,1781241034000,-278.72170502,0.00014699,2]
[424890368,1781241034000,-538.57,0.00014776,2]
[424890352,1781241034000,-150.0,0.00014699,2]
[424890351,1781241034000,-150.0,0.00014699,2]
[424890326,1781241034000,-269.418473,0.00014481,2]
[424890328,1781241034000,-150.0,0.00014487,2]
[424890332,1781241034000,-347.297249,0.00014524,2]
[424890329,1781241034000,-400.0,0.000145,5]
[424890331,1781241034000,-417.725782,0.00014524,2]
[424890333,1781241034000,-350.0,0.0001456,2]
[424890335,1781241034000,-250.0,0.00014588,2]
[424890334,1781241034000,-150.0,0.00014578,2]
[424890336,1781241034000,-2493.8597303,0.00014596,2]
[424890337,1781241034000,-434.016436,0.00014597,2]
[424890330,1781241034000,-150.0,0.00014509,2]
[424890348,1781241034000,-1568.16,0.00014687,2]
[424890350,1781241034000,-150.0,0.00014699,2]
[424890339,1781241034000,-915.7,0.00014618,2]
[424890347,1781241034000,-150.0,0.00014687,2]
[424890341,1781241034000,-2914.779048,0.00014635,2]
[424890344,1781241034000,-300.0,0.00014652,2]
[424890345,1781241034000,-150.0,0.00014687,2]
[424890349,1781241034000,-150.0,0.00014699,2]
[424890342,1781241034000,-5355.70002228,0.00014635,2]
[424890346,1781241034000,-150.0,0.00014687,2]
[424890343,1781241034000,-150.0,0.00014646,2]
[424890340,1781241034000,-179.773285,0.00014626,2]
[424890391,1781241035000,-500.0,0.00014811,2]
[424890383,1781241035000,-500.0,0.00014811,2]
[424890389,1781241035000,-500.0,0.00014811,2]
[424890387,1781241035000,-500.0,0.00014811,2]
[424890384,1781241035000,-500.0,0.00014811,2]
[424890381,1781241035000,-500.0,0.00014811,2]
[424890378,1781241035000,-5800.0,0.00014806,2]
[424890379,1781241035000,-500.0,0.00014811,2]
[424890380,1781241035000,-500.0,0.00014811,2]
[424890385,1781241035000,-500.0,0.00014811,2]
[424890382,1781241035000,-500.0,0.00014811,2]
[424890388,1781241035000,-500.0,0.00014811,2]
[424890401,1781241035000,-6169.0,0.00014812,5]
[424890390,1781241035000,-500.0,0.00014811,2]
[424890392,1781241035000,-500.0,0.00014811,2]
[424890394,1781241035000,-538.57,0.00014811,2]
[424890393,1781241035000,-500.0,0.00014811,2]
[424890395,1781241035000,-538.57,0.00014811,2]
[424890397,1781241035000,-538.57,0.00014811,2]
[424890399,1781241035000,-2000.0,0.00014812,2]
[424890396,1781241035000,-538.57,0.00014811,2]
[424890398,1781241035000,-538.57,0.00014811,2]
[424890400,1781241035000,-250.0,0.00014812,2]
[424890402,1781241035000,-132978.41959639,0.00014812,2]
[424890386,1781241035000,-500.0,0.00014811,2]
[424890404,1781241036000,-63861.92055468,0.00014812,2]
[424890403,1781241036000,-164129.33212298,0.00014812,2]
[424890407,1781241036000,-7474.50282015,0.00014812,2]
[424890406,1781241036000,-10490.42425741,0.00014812,2]
[424890405,1781241036000,-191323.00408934,0.00014812,2]
[424890408,1781241036000,-16698.57241436,0.00014812,2]
[424890664,1781241055000,-1138.68,0.00014999,2]
[424890605,1781241055000,-190.36690243,0.00014841,10]
[424890606,1781241055000,-5800.0,0.00014849,2]
[424890611,1781241055000,-5800.0,0.00014883,2]
[424890610,1781241055000,-5800.0,0.00014874,2]
[424890609,1781241055000,-5800.0,0.00014866,2]
[424890607,1781241055000,-150.0,0.0001485,2]
[424890603,1781241055000,-5800.0,0.00014832,2]
[424890612,1781241055000,-5800.0,0.00014891,2]
[424890614,1781241055000,-500.0,0.00014899,2]
[424890624,1781241055000,-2914.779048,0.000149,2]
[424890613,1781241055000,-500.0,0.00014899,2]
[424890615,1781241055000,-538.57,0.00014899,2]
[424890620,1781241055000,-10831.59005543,0.000149,2]
[424890617,1781241055000,-5800.0,0.000149,2]
[424890622,1781241055000,-25000.0,0.000149,3]
[424890623,1781241055000,-223.29404067,0.000149,3]
[424890604,1781241055000,-5800.0,0.00014841,2]
[424890602,1781241055000,-538.57,0.00014831,2]
[424890600,1781241055000,-500.0,0.00014831,2]
[424890599,1781241055000,-195.90339816,0.00014831,2]
[424890583,1781241055000,-218.0,0.00013887,2]
[424890585,1781241055000,-1307.70071724,0.00013946,2]
[424890584,1781241055000,-1470.9,0.00013887,2]
[424890587,1781241055000,-5400.0,0.00014812,2]
[424890586,1781241055000,-2184.51248366,0.00014812,2]
[424890588,1781241055000,-1576.94745,0.00014812,2]
[424890589,1781241055000,-807.91327417,0.00014812,2]
[424890590,1781241055000,-9561.50740717,0.00014812,2]
[424890593,1781241055000,-575964.8111805,0.00014812,2]
[424890591,1781241055000,-339.88265974,0.00014812,2]
[424890592,1781241055000,-210630.11441215,0.00014812,2]
[424890594,1781241055000,-286.89358724,0.00014812,2]
[424890595,1781241055000,-5800.0,0.00014815,2]
[424890601,1781241055000,-500.0,0.00014831,2]
[424890596,1781241055000,-1138.68,0.00014816,2]
[424890598,1781241055000,-5800.0,0.00014823,2]
[424890597,1781241055000,-250.0,0.00014823,2]
[424890618,1781241055000,-512.89893646,0.000149,2]
[424890621,1781241055000,-8686.0196,0.000149,2]
[424890608,1781241055000,-5800.0,0.00014858,2]
[424890616,1781241055000,-591.4038382,0.000149,2]
[424890640,1781241055000,-1806.7229005,0.00014942,2]
[424890642,1781241055000,-403.1343701,0.00014979,2]
[424890648,1781241055000,-215.3825728,0.00014986,2]
[424890657,1781241055000,-500.0,0.00014998,2]
[424890652,1781241055000,-115976.93829048,0.00014989,2]
[424890653,1781241055000,-32444.69653564,0.0001499,2]
[424890649,1781241055000,-215.04143497,0.00014986,2]
[424890651,1781241055000,-190.82024742,0.00014986,2]
[424890641,1781241055000,-1434.2429913,0.00014978,2]
[424890650,1781241055000,-295.39287249,0.00014986,2]
[424890656,1781241055000,-2493.8597303,0.0001499,2]
[424890654,1781241055000,-219.20640401,0.0001499,2]
[424890619,1781241055000,-243055.43520343,0.000149,3]
[424890659,1781241055000,-538.57,0.00014998,2]
[424890661,1781241055000,-1138.68,0.00014999,2]
[424890663,1781241055000,-1138.68,0.00014999,2]
[424890662,1781241055000,-1138.68,0.00014999,2]
[424890660,1781241055000,-1138.68,0.00014999,2]
[424890655,1781241055000,-219.20640401,0.0001499,2]
[424890638,1781241055000,-150.0,0.00014935,2]
[424890658,1781241055000,-500.0,0.00014998,2]
[424890636,1781241055000,-1138.68,0.00014916,2]
[424890639,1781241055000,-6427.8311385,0.00014936,2]
[424890626,1781241055000,-5355.70002228,0.000149,2]
[424890628,1781241055000,-626.78166446,0.000149,2]
[424890625,1781241055000,-1049.0,0.000149,5]
[424890631,1781241055000,-291.6690779,0.00014908,2]
[424890635,1781241055000,-1138.68,0.00014916,2]
[424890633,1781241055000,-1138.68,0.00014916,2]
[424890630,1781241055000,-2965.60883088,0.000149,2]
[424890629,1781241055000,-392.22788133,0.000149,2]
[424890627,1781241055000,-2678.49494645,0.000149,2]
[424890632,1781241055000,-1138.68,0.00014916,2]
[424890637,1781241055000,-150.0,0.00014918,2]
[424890643,1781241055000,-204.71,0.00014985,2]
[424890644,1781241055000,-197.14,0.00014985,2]
[424890646,1781241055000,-162.91718017,0.00014985,2]
[424890645,1781241055000,-160.59,0.00014985,2]
[424890634,1781241055000,-1138.68,0.00014916,2]
[424890647,1781241055000,-284.03421377,0.00014986,2]
[424890680,1781241056000,-500.0,0.00014999,2]
[424890681,1781241056000,-500.0,0.00014999,2]
[424890683,1781241056000,-429.49196123,0.00014999,2]
[424890696,1781241056000,-244.2993492,0.00014999,2]
[424890686,1781241056000,-500.0,0.00014999,2]
[424890685,1781241056000,-500.0,0.00014999,2]
[424890688,1781241056000,-500.0,0.00014999,2]
[424890689,1781241056000,-500.0,0.00014999,2]
[424890692,1781241056000,-500.0,0.00014999,2]
[424890695,1781241056000,-500.0,0.00014999,2]
[424890678,1781241056000,-500.0,0.00014999,2]
[424890690,1781241056000,-500.0,0.00014999,2]
[424890687,1781241056000,-500.0,0.00014999,2]
[424890674,1781241056000,-1138.69,0.00014999,2]
[424890666,1781241056000,-1138.68,0.00014999,2]
[424890676,1781241056000,-500.0,0.00014999,2]
[424890684,1781241056000,-500.0,0.00014999,2]
[424890677,1781241056000,-500.0,0.00014999,2]
[424890675,1781241056000,-500.0,0.00014999,2]
[424890673,1781241056000,-1138.68,0.00014999,2]
[424890672,1781241056000,-1138.68,0.00014999,2]
[424890668,1781241056000,-1138.68,0.00014999,2]
[424890669,1781241056000,-1138.68,0.00014999,2]
[424890665,1781241056000,-1138.68,0.00014999,2]
[424890670,1781241056000,-1138.68,0.00014999,2]
[424890667,1781241056000,-1138.68,0.00014999,2]
[424890671,1781241056000,-1138.68,0.00014999,2]
[424890693,1781241056000,-500.0,0.00014999,2]
[424890679,1781241056000,-500.0,0.00014999,2]
[424890691,1781241056000,-500.0,0.00014999,2]
[424890682,1781241056000,-500.0,0.00014999,2]
[424890698,1781241056000,-538.57,0.00014999,2]
[424890727,1781241056000,-825.29751821,0.00015,2]
[424890725,1781241056000,-1136.0,0.00015,2]
[424890723,1781241056000,-19189.38826412,0.00015,2]
[424890724,1781241056000,-3730.10146744,0.00015,2]
[424890722,1781241056000,-17821.98097733,0.00015,2]
[424890721,1781241056000,-43729.0654767,0.00015,2]
[424890720,1781241056000,-2439.21906532,0.00015,2]
[424890718,1781241056000,-5630.45551319,0.00015,2]
[424890719,1781241056000,-20651.8363302,0.00015,2]
[424890717,1781241056000,-775.32092544,0.00015,2]
[424890716,1781241056000,-932.10264588,0.00015,2]
[424890715,1781241056000,-796.55986639,0.00015,2]
[424890714,1781241056000,-1447.19242264,0.00015,2]
[424890712,1781241056000,-2122.30706648,0.00015,2]
[424890726,1781241056000,-284.0075628,0.00015,2]
[424890694,1781241056000,-500.0,0.00014999,2]
[424890713,1781241056000,-24957.9610609,0.00015,2]
[424890699,1781241056000,-538.57,0.00014999,2]
[424890711,1781241056000,-2688861.85141047,0.00015,2]
[424890697,1781241056000,-538.57,0.00014999,2]
[424890700,1781241056000,-538.57,0.00014999,2]
[424890706,1781241056000,-538.57,0.00014999,2]
[424890708,1781241056000,-538.57,0.00014999,2]
[424890705,1781241056000,-538.57,0.00014999,2]
[424890701,1781241056000,-538.57,0.00014999,2]
[424890703,1781241056000,-538.57,0.00014999,2]
[424890707,1781241056000,-538.57,0.00014999,2]
[424890702,1781241056000,-538.57,0.00014999,2]
[424890710,1781241056000,-2000.0,0.00014999,2]
[424890709,1781241056000,-538.64595417,0.00014999,2]
[424890704,1781241056000,-538.57,0.00014999,2]
[424890737,1781241057000,-6235.47784716,0.00015,2]
[424890735,1781241057000,-341.04,0.00014105,2]
[424890736,1781241057000,-642.3819762,0.00014105,2]
[424890733,1781241057000,-14021.51265051,0.00015,2]
[424890728,1781241057000,-475.80353924,0.00015,2]
[424890732,1781241057000,-136905.20511951,0.00015,2]
[424890730,1781241057000,-39625.45481323,0.00015,2]
[424890731,1781241057000,-35370.32145251,0.00015,2]
[424890729,1781241057000,-1029.3446437,0.00015,2]
[424890734,1781241057000,-324.27874104,0.00014105,2]
[424890738,1781241057000,-6172.35656158,0.00015,2]
[424890739,1781241057000,-2169.98113858,0.00015,2]
[424890741,1781241057000,-9480.04408017,0.00015,2]
[424890740,1781241057000,-500.0,0.00015,2]
[424890752,1781241057000,-31426.91282622,0.00015,2]
[424890751,1781241057000,-11182.6699831,0.00015,2]
[424890750,1781241057000,-91150.80052164,0.00015,2]
[424890749,1781241057000,-501.0,0.00015,2]
[424890748,1781241057000,-19579.25548105,0.00015,2]
[424890747,1781241057000,-1049.53867975,0.00015,2]
[424890744,1781241057000,-1151.30067516,0.00015,2]
[424890745,1781241057000,-361.12757657,0.00015,2]
[424890746,1781241057000,-64845.7125,0.00015,2]
[424890742,1781241057000,-4769.01006679,0.00015,2]
[424890743,1781241057000,-1110.9295,0.00015,2]
[424890754,1781241074000,-151.0,0.00012672,2]
[424890755,1781241126000,-150.0,0.00011252,2]
[424890756,1781241146000,-155.543169,0.000125,2]
[424890758,1781241165000,-155.543169,0.00011599,2]
[424890759,1781241184000,-344.456831,0.00011599,2]
[424890760,1781241236000,-500.0,0.00011598,2]
[424890764,1781241450000,-150.0,0.00011596,2]
[424890765,1781241504000,-150.0,0.00011595,2]
[424890767,1781241558000,-355.0,0.00011596,2]
[424890768,1781241577000,-145.0,0.00011596,2]
[424890769,1781241630000,-300.0,0.00011595,2]
[424890771,1781241683000,-153.47,0.00010008,2]
[424890774,1781241737000,-150.0,0.00010801,2]
[424890775,1781241790000,-152.0,0.00011162,2]
[424890776,1781241843000,-500.0,0.00011594,2]
[424890778,1781241897000,-307.0,0.00011594,2]
[424890781,1781242051000,-150.0,0.00011595,2]
[424890782,1781242104000,-326.0,0.00010796,2]
[424890783,1781242125000,-506.0,0.00010796,2]
[424890784,1781242144000,-506.0,0.00010796,2]
[424890785,1781242164000,-203.0,0.00010796,2]
[424890786,1781242186000,-13.0221964,0.00010796,2]
[424890838,1781242239000,-500.0,0.00011595,2]
[424890840,1781242239000,-500.0,0.00011595,2]
[424890837,1781242239000,-500.0,0.00011595,2]
[424890834,1781242239000,-500.0,0.00011595,2]
[424890832,1781242239000,-500.0,0.00011595,2]